bitfinex-derivatives/quotes_SOLF0:USTF0_20260107
["timestamp","ask_amount","ask_price","bid_price","bid_amount"]
[1767796377735,240.02672061,137.69,137.59,0.04963984]
[1767796378039,101.7648,137.68,137.55,0.71616773]
[1767796378239,101.7791,137.66,137.55,86.69616773]
[1767796378540,6.5438,137.65,137.55,93.24406773]
[1767796379234,6.5427,137.67,137.59,0.04876382]
[1767796380133,6.5432,137.66,137.59,0.04876382]
[1767796380335,15.53199217,137.69,137.59,0.88224001]
[1767796380645,14.26702061,137.69,137.59,0.83347619]
[1767796380939,6.5429,137.66,137.63,0.04777182]
[1767796381143,6.5429,137.66,137.56,85.96]
[1767796381438,6.5429,137.66,137.55,86.79347619]
[1767796382141,14.26702061,137.69,137.57,0.77371757]
[1767796382937,14.26702061,137.69,137.53,6.04058933]
[1767796382938,6.545,137.62,137.49,102.67171757]
[1767796383136,101.8044,137.63,137.49,0.77371757]
[1767796383434,101.8044,137.63,137.51,0.77371757]
[1767796383435,6.04058933,137.63,137.51,0.77371757]
[1767796383643,6.04058933,137.64,137.53,0.77371757]
[1767796383842,101.8023,137.63,137.5,0.77371757]
[1767796384037,101.8268,137.6,137.5,0.77371757]
[1767796384238,101.8268,137.6,137.46,101.9241]
[1767796384239,6.09262661,137.58,137.57,0.04825365]
[1767796384443,6.09262661,137.58,137.46,86.71371757]
[1767796384638,107.88318933,137.58,137.46,86.71371757]
[1767796384841,101.8544,137.56,137.46,0.77371757]
[1767796385041,107.90418933,137.55,137.42,0.77371757]
[1767796385244,6.5498,137.52,137.43,92.4936]
[1767796385547,101.883,137.52,137.4,85.94]
[1767796385746,6.08970173,137.5,137.4,85.94]
[1767796385933,6.08970173,137.5,137.4,6.555]
[1767796386339,6.04058933,137.5,137.4,6.555]
[1767796386849,0.0508907,137.46,137.38,0.77371757]
[1767796387140,0.0508907,137.46,137.39,102.74981757]
[1767796387345,6.04058933,137.53,137.42,0.77371757]
[1767796387742,6.5499,137.52,137.42,0.77371757]
[1767796387947,107.91598933,137.53,137.42,0.77371757]
[1767796388348,6.04058933,137.5,137.4,6.5552]
[1767796388553,6.04058933,137.5,137.38,93.26971757]
[1767796388846,6.04058933,137.47,137.34,102.78731757]
[1767796389044,6.04058933,137.47,137.35,85.94]
[1767796389343,6.5527,137.46,137.35,85.94]
[1767796389555,124.0,137.49,137.37,102.76661757]
[1767796389848,6.5514,137.49,137.37,102.76371757]
[1767796390438,107.94308933,137.5,137.39,0.77371757]
[1767796390639,107.94308933,137.5,137.37,85.96]
[1767796390840,6.04058933,137.47,137.37,85.96]
[1767796391043,130.04058933,137.5,137.38,102.75931757]
[1767796391239,6.04058933,137.5,137.4,101.9684]
[1767796391446,92.00058933,137.52,137.4,102.74211757]
[1767796391648,6.04058933,137.52,137.4,0.77371757]
[1767796392039,101.827,137.6,137.46,101.921]
[1767796392243,107.87178933,137.59,137.48,0.77371757]
[1767796392439,101.839,137.58,137.46,85.96]
[1767796392639,12.58848933,137.56,137.46,85.96]
[1767796392844,12.58848933,137.56,137.45,6.5527]
[1767796393047,12.58848933,137.56,137.44,188.67261757]
[1767796393247,101.8609,137.55,137.41,102.73441757]
[1767796393443,6.04058933,137.56,137.45,0.77371757]
[1767796393647,6.04058933,137.56,137.46,6.5522]
[1767796393850,6.04058933,137.56,137.45,102.70481757]
[1767796394158,6.04058933,137.53,137.42,7.32761757]
[1767796394454,6.5503,137.51,137.39,101.9788]
[1767796394651,6.5503,137.51,137.38,102.75711757]
[1767796394652,6.04058933,137.5,137.38,0.77371757]
[1767796394849,6.04058933,137.47,137.34,102.78611757]
[1767796395054,6.5527,137.46,137.35,86.73371757]
[1767796395250,6.5527,137.46,137.35,0.77371757]
[1767796395555,6.04058933,137.47,137.35,188.73651757]
[1767796395953,6.04058933,137.47,137.35,86.73371757]
[1767796396256,6.5531,137.45,137.35,93.29111757]
[1767796396448,6.04058933,137.47,137.35,7.33111757]
[1767796396648,116.7616972,137.49,137.35,102.77891757]
[1767796397150,101.9142,137.48,137.35,86.75371757]
[1767796397354,14.8528972,137.49,137.36,0.77371757]
[1767796397556,6.5521,137.47,137.36,0.77371757]
[1767796397756,101.9272,137.46,137.35,85.98]
[1767796398350,101.9272,137.46,137.33,85.98]
[1767796398552,101.9272,137.46,137.33,86.75371757]
[1767796398958,6.5537,137.44,137.34,6.5579]
[1767796399650,6.554,137.43,137.33,86.75371757]
[1767796399851,86.0,137.48,137.35,102.0043]
[1767796400050,101.8926,137.51,137.38,0.77371757]
[1767796400250,101.8979,137.5,137.38,0.77371757]
[1767796400452,101.9134,137.48,137.37,86.0]
[1767796400652,6.5531,137.45,137.37,86.0]
[1767796401048,101.935,137.45,137.37,86.0]
[1767796401244,101.935,137.45,137.34,0.77371757]
[1767796401450,101.9735,137.4,137.25,102.0816]
[1767796401646,101.9735,137.4,137.26,102.0721]
[1767796401853,101.9735,137.4,137.28,0.77371757]
[1767796402158,101.9646,137.41,137.29,0.77371757]
[1767796402460,101.974,137.4,137.29,0.77371757]
[1767796402663,6.5569,137.37,137.29,0.77371757]
[1767796402956,101.9866,137.38,137.29,0.77371757]
[1767796403162,6.5574,137.36,137.29,0.77371757]
[1767796403351,101.9894,137.38,137.29,0.77371757]
[1767796403752,6.5576,137.36,137.29,0.77371757]
[1767796404566,6.5565,137.38,137.29,0.77371757]
[1767796404957,101.9768,137.4,137.29,0.77371757]
[1767796405360,101.9909,137.38,137.27,92.5614]
[1767796405557,101.9967,137.37,137.27,86.0]
[1767796405759,102.0102,137.35,137.25,0.77371757]
[1767796405962,6.559,137.33,137.25,0.77371757]
[1767796406463,102.0167,137.34,137.21,102.88331757]
[1767796406658,102.0143,137.35,137.23,86.02]
[1767796406967,102.0039,137.36,137.24,0.77371757]
[1767796407557,6.5583,137.34,137.25,6.5623]
[1767796407861,102.0259,137.33,137.2,0.77371757]
[1767796408160,6.5607,137.29,137.2,93.35821757]
[1767796408762,6.5607,137.29,137.2,7.33821757]
[1767796409060,102.0125,137.35,137.2,7.33821757]
[1767796409061,102.0214,137.34,137.24,0.77371757]
[1767796409262,102.0214,137.34,137.21,0.77371757]
[1767796409961,102.0214,137.34,137.21,86.81371757]
[1767796410161,102.0245,137.33,137.21,93.37781757]
[1767796410964,102.0245,137.33,137.21,7.33781757]
[1767796411365,6.5594,137.32,137.21,102.88311757]
[1767796411566,86.06,137.34,137.22,0.77371757]
[1767796411868,86.06,137.34,137.24,6.5628]
[1767796411869,92.6183,137.34,137.24,6.5628]
[1767796412264,86.06,137.34,137.24,0.85712613]
[1767796412459,102.0067,137.36,137.24,7.41972613]
[1767796412657,102.0104,137.35,137.24,7.41972613]
[1767796413558,102.0164,137.34,137.22,92.6236]
[1767796413758,102.0239,137.33,137.22,6.5636]
[1767796413957,102.0164,137.34,137.22,6.5636]
[1767796414164,101.9977,137.37,137.23,0.85712613]
[1767796414563,101.9977,137.37,137.23,86.91712613]
[1767796414757,6.5579,137.35,137.24,0.85712613]
[1767796415370,6.5569,137.37,137.28,6.5609]
[1767796416161,6.5573,137.36,137.28,6.5609]
[1767796416468,102.0024,137.36,137.24,86.08]
[1767796417072,102.0024,137.36,137.23,0.85712613]
[1767796417273,102.0241,137.33,137.2,86.08]
[1767796417469,102.0341,137.32,137.2,86.93712613]
[1767796418173,102.0341,137.32,137.2,0.85712613]
[1767796418368,102.0241,137.33,137.22,6.5636]
[1767796418574,86.08,137.34,137.22,0.85712613]
[1767796418871,86.08,137.34,137.23,0.85712613]
[1767796419071,6.073438,137.35,137.23,0.85712613]
[1767796419274,6.5592,137.32,137.23,86.93712613]
[1767796419576,102.0164,137.34,137.23,86.93712613]
[1767796420566,6.5589,137.33,137.24,6.5628]
[1767796420861,102.0124,137.35,137.24,6.5628]
[1767796421167,6.5592,137.32,137.25,6.5623]
[1767796421369,188.0694,137.38,137.24,0.85712613]
[1767796421674,101.9941,137.37,137.24,0.85712613]
[1767796422272,6.5584,137.34,137.27,6.5614]
[1767796423270,6.5575,137.36,137.28,6.5609]
[1767796423970,86.1,137.39,137.27,0.85712613]
[1767796424175,86.1,137.39,137.25,188.1566]
[1767796424176,101.9887,137.38,137.24,195.09536413]
[1767796424574,101.9887,137.38,137.24,189.02192613]
[1767796424975,6.5583,137.34,137.24,86.93712613]
[1767796425274,101.9887,137.38,137.22,86.08]
[1767796425275,102.0096,137.35,137.22,86.08]
[1767796425474,102.0206,137.34,137.22,86.08]
[1767796425871,6.5597,137.31,137.22,6.5635]
[1767796426071,102.0206,137.34,137.22,6.5635]
[1767796426274,188.1096,137.35,137.21,102.96452613]
[1767796426579,6.5584,137.34,137.26,6.5619]
[1767796426971,6.5593,137.32,137.24,6.5625]
[1767796427278,6.073438,137.33,137.22,86.93712613]
[1767796427474,6.073438,137.33,137.22,0.85712613]
[1767796427672,6.5601,137.3,137.21,6.564]
[1767796428175,102.0317,137.32,137.19,7.42212613]
[1767796428370,6.073438,137.3,137.19,7.42212613]
[1767796428579,6.073438,137.3,137.19,0.85712613]
[1767796428775,6.5616,137.27,137.19,7.42212613]
[1767796430575,6.5622,137.26,137.19,0.85712613]
[1767796430773,6.5622,137.26,137.17,86.1]
[1767796431779,6.5626,137.25,137.17,86.1]
[1767796432178,108.146438,137.27,137.16,0.85712613]
[1767796432584,102.073,137.27,137.16,0.85712613]
[1767796432784,188.1567,137.29,137.16,0.85712613]
[1767796433086,102.0611,137.28,137.16,0.85712613]
[1767796433287,102.0699,137.27,137.16,0.85712613]
[1767796433773,6.5631,137.24,137.16,0.85712613]
[1767796434480,6.5631,137.24,137.16,7.42382613]
[1767796436185,6.5635,137.23,137.16,0.85712613]
[1767796436686,102.0863,137.25,137.13,0.85712613]
[1767796437383,6.5644,137.21,137.14,6.5676]
[1767796437584,102.0795,137.26,137.13,0.85712613]
[1767796437783,188.2099,137.27,137.13,0.85712613]
[1767796437979,188.2099,137.27,137.14,0.85712613]
[1767796438177,6.563,137.24,137.16,6.5666]
[1767796438686,6.5622,137.26,137.17,7.42322613]
[1767796439188,6.5625,137.25,137.17,7.42322613]
[1767796439793,6.5635,137.23,137.15,6.5669]
[1767796439993,102.0833,137.25,137.14,0.85712613]
[1767796440296,102.0928,137.24,137.14,0.85712613]
[1767796440495,6.5644,137.21,137.14,0.85712613]
[1767796440883,6.5625,137.25,137.16,0.94453144]
[1767796441286,86.14,137.27,137.18,6.5657]
[1767796441488,92.7019,137.27,137.17,0.94453144]
[1767796441682,102.0257,137.33,137.2,0.94453144]
[1767796441893,102.0257,137.33,137.2,7.50893144]
[1767796442097,124.0,137.33,137.2,0.94453144]
[1767796442293,102.0044,137.36,137.22,0.90922149]
[1767796442599,101.9953,137.37,137.27,0.90922149]
[1767796442600,86.14,137.37,137.27,0.90922149]
[1767796442902,188.1071,137.41,137.27,0.90922149]
[1767796443195,101.9319,137.46,137.31,0.90922149]
[1767796443395,101.9497,137.43,137.31,0.90922149]
[1767796443999,101.9748,137.4,137.27,0.90922149]
[1767796444196,101.9953,137.37,137.25,86.14]
[1767796444494,111.84185883,137.42,137.28,0.90922149]
[1767796444688,101.9867,137.38,137.25,0.90922149]
[1767796444885,225.9796,137.39,137.26,0.90922149]
[1767796445088,6.5566,137.38,137.27,0.90922149]
[1767796445395,108.5432,137.38,137.27,0.90922149]
[1767796445789,124.0,137.39,137.28,6.5607]
[1767796446001,86.14,137.42,137.31,0.90922149]
[1767796446296,86.14,137.42,137.32,0.90922149]
[1767796446696,6.5542,137.43,137.32,0.90922149]
[1767796446890,124.0,137.44,137.32,0.90922149]
[1767796447200,101.9231,137.47,137.35,0.90922149]
[1767796447496,124.0,137.46,137.36,102.91062149]
[1767796447695,86.12,137.48,137.37,0.90922149]
[1767796448205,188.0325,137.48,137.37,0.90922149]
[1767796448397,101.9214,137.47,137.37,0.90922149]
[1767796448599,101.9293,137.46,137.33,87.00922149]
[1767796448800,188.0325,137.48,137.35,0.90922149]
[1767796449095,225.9198,137.47,137.35,0.90922149]
[1767796449298,6.5527,137.46,137.36,0.90922149]
[1767796449506,101.9131,137.48,137.36,0.90922149]
[1767796449903,225.9131,137.48,137.36,0.90922149]
[1767796450396,101.9276,137.46,137.33,0.90922149]
[1767796450604,101.9516,137.43,137.33,86.08]
[1767796450799,101.958,137.42,137.3,86.98922149]
[1767796451189,101.9651,137.41,137.27,102.97482149]
[1767796451391,101.9729,137.4,137.27,189.05482149]
[1767796451590,101.9651,137.41,137.27,189.05482149]
[1767796451804,101.9651,137.41,137.28,0.90922149]
[1767796452003,101.9792,137.39,137.28,7.46992149]
[1767796452302,101.9792,137.39,137.28,0.90922149]
[1767796452507,6.5565,137.38,137.28,0.90922149]
[1767796452696,101.9842,137.39,137.28,0.90922149]
[1767796452896,101.988,137.38,137.24,102.99822149]
[1767796453096,6.5574,137.36,137.26,6.5616]
[1767796453512,102.0022,137.36,137.25,86.98922149]
[1767796453805,101.9842,137.39,137.26,0.90922149]
[1767796454005,86.08,137.4,137.26,0.90922149]
[1767796454199,6.556,137.39,137.27,7.47042149]
[1767796454701,6.5565,137.38,137.28,7.46992149]
[1767796455302,92.6355,137.4,137.29,6.5603]
[1767796455509,86.08,137.4,137.29,6.5603]
[1767796455903,101.9878,137.38,137.27,92.6412]
[1767796456412,101.9795,137.39,137.27,92.6412]
[1767796456608,6.5569,137.37,137.27,92.6412]
[1767796457615,6.5569,137.37,137.27,93.55042149]
[1767796458016,6.5569,137.37,137.28,0.90922149]
[1767796458417,101.9795,137.39,137.28,0.90922149]
[1767796458418,6.556,137.39,137.28,0.90922149]
[1767796458712,86.08,137.4,137.28,0.90922149]
[1767796459017,6.5561,137.39,137.29,7.46962149]
[1767796459310,188.0558,137.4,137.29,7.46962149]
[1767796460409,188.0567,137.4,137.3,0.90922149]
[1767796460610,188.0567,137.4,137.28,86.98922149]
[1767796460914,101.9874,137.38,137.28,0.90922149]
[1767796461126,102.0094,137.35,137.24,0.90922149]
[1767796461820,86.08,137.37,137.26,0.90922149]
[1767796462417,6.5573,137.36,137.28,6.5609]
[1767796462612,6.5573,137.36,137.26,0.90922149]
[1767796462814,86.08,137.37,137.26,0.90922149]
[1767796463714,6.5579,137.35,137.27,6.5614]
[1767796464320,197.92885883,137.41,137.28,0.90922149]
[1767796464521,188.0475,137.41,137.29,0.90922149]
[1767796464823,101.9537,137.43,137.32,0.90922149]
[1767796465224,6.5555,137.4,137.32,7.46822149]
[1767796465421,6.5555,137.4,137.32,0.90922149]
[1767796465620,124.0,137.43,137.32,0.90922149]
[1767796465923,130.5542,137.43,137.33,6.5584]
[1767796466226,187.9955,137.48,137.35,0.90922149]
[1767796466616,130.5522,137.47,137.36,0.90922149]
[1767796466813,6.5522,137.47,137.36,0.90922149]
[1767796467016,197.86225883,137.5,137.37,0.90922149]
[1767796467213,124.0,137.49,137.37,0.90922149]
[1767796467620,6.5517,137.48,137.38,6.5559]
[1767796468417,101.9161,137.48,137.36,6.557]
[1767796468723,101.9276,137.46,137.34,0.90922149]
[1767796469326,124.0,137.45,137.34,0.90922149]
[1767796469626,6.5536,137.44,137.34,7.46722149]
[1767796469814,124.0,137.45,137.34,0.90922149]
[1767796470012,6.5527,137.46,137.36,6.5569]
[1767796470214,6.5527,137.46,137.35,102.91242149]
[1767796470417,124.0,137.47,137.35,0.90922149]
[1767796470614,6.5543,137.43,137.33,6.5583]
[1767796470820,101.9592,137.42,137.29,102.96042149]
[1767796471128,6.555,137.41,137.31,6.5595]
[1767796471626,101.9653,137.41,137.3,0.90922149]
[1767796471826,124.0,137.41,137.3,0.90922149]
[1767796472223,124.0,137.41,137.29,86.06]
[1767796472417,124.0,137.41,137.29,87.01079219]
[1767796473425,6.556,137.39,137.3,6.5598]
[1767796473630,124.0,137.41,137.3,0.95079219]
[1767796473825,130.555,137.41,137.32,6.5588]
[1767796474025,101.9734,137.4,137.27,0.95079219]
[1767796474629,6.5569,137.37,137.28,6.5607]
[1767796475023,6.5554,137.4,137.32,6.5588]
[1767796475335,101.9647,137.41,137.28,0.95079219]
[1767796475535,225.9647,137.41,137.28,0.95079219]
[1767796475829,101.9816,137.39,137.28,0.95079219]
[1767796476633,225.9816,137.39,137.28,0.95079219]
[1767796476835,6.5573,137.36,137.29,6.5604]
[1767796477135,124.0,137.39,137.29,0.95079219]
[1767796477333,130.5561,137.39,137.3,6.56]
[1767796477529,6.5561,137.39,137.29,0.95079219]
[1767796477727,86.06,137.4,137.29,0.95079219]
[1767796477926,210.06,137.4,137.29,0.95079219]
[1767796478131,312.0362,137.4,137.29,0.95079219]
[1767796479336,6.557,137.37,137.3,6.56]
[1767796479539,210.06,137.4,137.3,6.56]
[1767796479737,86.06,137.4,137.29,0.95079219]
[1767796479929,86.06,137.4,137.32,6.5589]
[1767796480131,124.0,137.44,137.32,0.95079219]
[1767796480424,101.9375,137.45,137.33,0.95079219]
[1767796480425,86.06,137.45,137.33,0.95079219]
[1767796480728,86.06,137.45,137.34,0.95079219]
[1767796481033,197.84345883,137.5,137.37,0.95079219]
[1767796481237,6.5521,137.47,137.39,6.5556]
[1767796482038,6.5527,137.46,137.37,7.50739219]
[1767796482226,101.9153,137.48,137.37,7.50739219]
[1767796482430,101.9203,137.47,137.37,7.50739219]
[1767796482629,101.9203,137.47,137.36,86.06]
[1767796482831,101.9153,137.48,137.36,87.01079219]
[1767796483027,311.9621,137.5,137.37,0.95079219]
[1767796483436,6.552,137.47,137.39,6.5555]
[1767796484141,101.9157,137.48,137.37,7.50739219]
[1767796485233,101.9278,137.46,137.35,6.5574]
[1767796485438,101.9218,137.47,137.35,0.95079219]
[1767796485634,101.9095,137.49,137.38,6.5561]
[1767796485635,6.553,137.45,137.38,6.5561]
[1767796485829,101.9095,137.49,137.38,6.5561]
[1767796487034,101.9056,137.49,137.38,0.95079219]
[1767796487430,6.553,137.45,137.38,0.95079219]
[1767796487642,101.919,137.48,137.38,0.95079219]
[1767796487840,101.9287,137.46,137.34,0.95079219]
[1767796488246,6.554,137.43,137.35,6.5576]
[1767796488444,101.9223,137.47,137.34,0.95079219]
[1767796488645,6.553,137.45,137.37,7.50739219]
[1767796489238,101.9277,137.46,137.37,0.95079219]
[1767796489551,101.9277,137.46,137.35,7.50819219]
[1767796489738,6.5549,137.41,137.33,6.5584]
[1767796489939,101.9425,137.44,137.33,6.5584]
[1767796490140,101.9572,137.42,137.32,0.95079219]
[1767796490340,6.5559,137.39,137.32,7.50979219]
[1767796490747,101.9745,137.4,137.29,0.95079219]
[1767796490947,6.557,137.37,137.3,92.6]
[1767796491444,6.557,137.37,137.3,93.55079219]
[1767796492450,6.557,137.37,137.3,7.51079219]
[1767796492641,6.557,137.37,137.3,0.95079219]
[1767796492837,101.9866,137.38,137.27,86.99079219]
[1767796493042,101.98,137.39,137.27,86.99079219]
[1767796493437,6.5582,137.34,137.25,6.5623]
[1767796493639,6.5582,137.34,137.25,93.55309219]
[1767796494246,188.0591,137.37,137.26,7.51259219]
[1767796494447,86.06,137.37,137.26,0.95079219]
[1767796494644,86.06,137.37,137.27,7.51199219]
[1767796495345,101.9745,137.4,137.29,0.95079219]
[1767796495346,188.0345,137.4,137.29,0.95079219]
[1767796495646,188.0345,137.4,137.29,86.99079219]
[1767796496655,6.5564,137.38,137.3,6.5599]
[1767796497351,188.0345,137.4,137.29,86.99079219]
[1767796497352,6.5569,137.37,137.29,86.99079219]
[1767796498049,188.0345,137.4,137.3,6.56]
[1767796498245,86.06,137.4,137.3,6.56]
[1767796498440,86.06,137.4,137.31,6.5594]
[1767796498849,108.03041357,137.42,137.3,0.95079219]
[1767796499054,86.06,137.41,137.3,0.95079219]
[1767796500468,6.5558,137.39,137.29,86.06]
[1767796500755,108.00631357,137.45,137.31,0.95079219]
[1767796500947,6.5552,137.41,137.33,6.5584]
[1767796501146,6.5552,137.41,137.32,87.01079219]
[1767796501147,101.9496,137.43,137.32,0.95079219]
[1767796501654,101.9653,137.41,137.31,86.06]
[1767796502046,6.5558,137.39,137.31,92.6195]
[1767796502449,86.06,137.42,137.32,1.05505472]
[1767796502755,101.9455,137.44,137.32,1.05505472]
[1767796503153,187.9966,137.45,137.29,1.05505472]
[1767796503154,101.9678,137.41,137.29,1.05505472]
[1767796503366,101.9808,137.39,137.28,86.06]
[1767796503655,6.5568,137.37,137.29,1.05505472]
[1767796503847,101.9678,137.41,137.29,1.05505472]
[1767796504047,101.9798,137.39,137.29,1.05505472]
[1767796504245,108.04691357,137.4,137.28,7.61585472]
[1767796504558,101.9945,137.37,137.28,1.05505472]
[1767796504854,101.9792,137.39,137.28,1.05505472]
[1767796505156,101.9879,137.38,137.28,1.05505472]
[1767796505357,6.5579,137.35,137.25,87.11505472]
[1767796505548,101.999,137.37,137.25,87.11505472]
[1767796505751,101.999,137.37,137.26,1.05505472]
[1767796505951,6.5584,137.34,137.26,7.61685472]
[1767796506945,6.5575,137.36,137.28,7.61595472]
[1767796507150,108.04891357,137.39,137.29,1.05505472]
[1767796507354,101.9729,137.4,137.29,1.05505472]
[1767796507962,6.5569,137.37,137.29,7.61535472]
[1767796508854,6.5573,137.36,137.29,1.05505472]
[1767796509053,6.5573,137.36,137.26,102.0729]
[1767796509054,101.9873,137.38,137.26,87.11505472]
[1767796509947,188.0278,137.41,137.28,1.05505472]
[1767796510155,101.984,137.39,137.28,1.05505472]
[1767796510355,101.9867,137.38,137.28,1.05505472]
[1767796511152,6.5575,137.36,137.28,7.61575472]
[1767796511552,101.9945,137.37,137.28,1.05505472]
[1767796511749,102.0089,137.35,137.25,1.05505472]
[1767796512661,6.5588,137.33,137.25,7.61735472]
[1767796513252,6.5578,137.35,137.26,1.05505472]
[1767796513549,86.08,137.36,137.26,1.05505472]
[1767796514457,6.5588,137.33,137.26,7.61685472]
[1767796515658,102.02,137.34,137.23,87.11505472]
[1767796515864,102.0269,137.33,137.23,1.05505472]
[1767796516056,188.1069,137.33,137.23,1.05505472]
[1767796516257,6.56,137.31,137.23,7.61835472]
[1767796516457,86.08,137.33,137.23,1.05505472]
[1767796516858,92.14971357,137.36,137.23,1.05505472]
[1767796517059,6.5592,137.32,137.24,1.05505472]
[1767796517259,194.15791357,137.36,137.24,1.05505472]
[1767796517671,6.5585,137.34,137.24,1.05505472]
[1767796517964,92.14971357,137.36,137.24,1.05505472]
[1767796518662,102.0271,137.33,137.23,1.05505472]
[1767796518966,102.0315,137.32,137.2,87.13505472]
[1767796519167,86.08,137.31,137.2,87.13505472]
[1767796519565,86.08,137.31,137.21,1.05505472]
[1767796520163,86.08,137.31,137.22,6.5638]
[1767796520559,6.06971357,137.36,137.26,6.5619]
[1767796520752,194.17411357,137.36,137.26,6.5619]
[1767796521159,194.17411357,137.36,137.27,6.5614]
[1767796521160,6.5582,137.34,137.27,6.5614]
[1767796521564,86.1,137.36,137.24,1.05505472]
[1767796521855,86.1,137.36,137.22,102.105]
[1767796521856,108.09431357,137.33,137.21,1.05505472]
[1767796522060,102.0327,137.32,137.21,87.13505472]
[1767796522262,6.5606,137.29,137.21,7.61925472]
[1767796522464,6.5606,137.29,137.21,1.05505472]
[1767796523469,102.0468,137.3,137.18,1.05505472]
[1767796523666,102.0468,137.3,137.18,87.13505472]
[1767796524263,102.0468,137.3,137.15,1.05505472]
[1767796524264,102.0634,137.28,137.15,1.05505472]
[1767796524463,108.14201357,137.27,137.15,87.13505472]
[1767796524666,102.0839,137.25,137.12,1.05505472]
[1767796524866,6.564,137.22,137.13,6.5678]
[1767796525261,102.0771,137.26,137.13,7.62295472]
[1767796525458,188.1845,137.25,137.13,7.62295472]
[1767796525660,86.1,137.25,137.13,1.05505472]
[1767796525862,6.5641,137.22,137.13,1.05505472]
[1767796526064,6.5641,137.22,137.09,1.05505472]
[1767796526065,102.115,137.21,137.09,1.05505472]
[1767796526360,6.5656,137.19,137.09,7.62485472]
[1767796526565,102.1237,137.2,137.09,1.05505472]
[1767796526965,86.1,137.2,137.09,1.05505472]
[1767796527271,210.1,137.2,137.09,1.05505472]
[1767796527870,86.12,137.22,137.1,1.05505472]
[1767796528062,86.12,137.22,137.11,1.05505472]
[1767796528465,210.12,137.22,137.11,1.05505472]
[1767796528776,188.2304,137.22,137.11,1.05505472]
[1767796529961,86.12,137.22,137.12,1.05505472]
[1767796530767,6.5645,137.21,137.12,7.62355472]
[1767796531569,86.12,137.22,137.13,7.62285472]
[1767796531767,102.0683,137.27,137.14,1.04692898]
[1767796531969,86.14,137.26,137.14,1.04692898]
[1767796532175,188.2211,137.26,137.14,7.61432898]
[1767796532887,6.5628,137.25,137.16,1.04692898]
[1767796533672,86.14,137.26,137.17,1.04692898]
[1767796534070,6.5618,137.27,137.17,1.04692898]
[1767796534469,86.16,137.28,137.2,1.04692898]
[1767796534667,86.16,137.28,137.17,1.04692898]
[1767796534868,102.0564,137.29,137.19,6.5652]
[1767796535066,188.2164,137.29,137.19,6.5652]
[1767796535265,6.5617,137.27,137.19,6.5652]
[1767796535888,6.06971357,137.32,137.2,1.04692898]
[1767796536181,92.22971357,137.32,137.2,1.04692898]
[1767796536382,6.5598,137.31,137.21,1.04692898]
[1767796536672,6.5598,137.31,137.23,6.5633]
[1767796536864,6.5587,137.33,137.23,1.04692898]
[1767796537066,101.9985,137.37,137.24,1.04692898]
[1767796537374,86.16,137.36,137.25,6.5623]
[1767796538280,225.9985,137.37,137.25,6.5623]
[1767796538580,225.9985,137.37,137.25,1.04692898]
[1767796538581,86.14,137.36,137.25,1.04692898]
[1767796539278,86.14,137.36,137.27,6.5614]
[1767796539279,6.5574,137.36,137.27,6.5614]
[1767796539883,86.14,137.37,137.28,6.5607]
[1767796540083,86.14,137.37,137.27,1.04692898]
[1767796540473,6.5575,137.36,137.28,6.5609]
[1767796540777,86.14,137.37,137.27,1.04692898]
[1767796541182,92.6971,137.37,137.27,1.04692898]
[1767796541578,6.5564,137.38,137.3,6.5599]
[1767796541773,86.14,137.4,137.29,1.04692898]
[1767796541986,108.01541357,137.44,137.31,1.04692898]
[1767796542282,124.0,137.43,137.31,1.04692898]
[1767796542478,86.14,137.43,137.32,1.04692898]
[1767796542784,86.14,137.43,137.32,87.16692898]
[1767796543087,86.14,137.43,137.33,1.04692898]
[1767796543394,101.938,137.45,137.33,1.04692898]
[1767796543586,6.5541,137.43,137.33,1.04692898]
[1767796544285,6.5555,137.4,137.31,86.12]
[1767796544578,6.5555,137.4,137.31,87.16692898]
[1767796544783,6.5555,137.4,137.31,93.72632898]
[1767796544978,6.5545,137.42,137.32,1.04692898]